fUST/lending_fUST_20250713
["ID","MTS","AMOUNT","RATE_DAILY","PERIOD"]
[371764576,1752420649876,-460.0,0.00017534,2]
[371764577,1752420649885,-460.0,0.00017534,2]
[371764578,1752420649894,-616.35,0.00017534,2]
[371764579,1752420649903,-460.0,0.00017534,2]
[371764580,1752420649912,-460.0,0.00017534,2]
[371764581,1752420649922,-460.0,0.00017534,2]
[371764582,1752420649931,-460.0,0.00017534,2]
[371764583,1752420649940,-460.0,0.00017534,2]
[371764584,1752420649950,-460.0,0.00017534,2]
[371764585,1752420649959,-832.31,0.00017534,2]
[371764586,1752420649969,-377.57640303,0.00017534,2]
[371764587,1752420649983,-460.0,0.00017534,2]
[371764588,1752420649993,-460.0,0.00017534,2]
[371764589,1752420650002,-460.0,0.00017534,2]
[371764590,1752420650011,-460.0,0.00017534,2]
[371764591,1752420650020,-460.0,0.00017534,2]
[371764592,1752420650029,-1473.48,0.00017534,2]
[371764593,1752420650038,-460.0,0.00017534,2]
[371764594,1752420650047,-460.0,0.00017534,2]
[371764595,1752420650056,-460.0,0.00017534,2]
[371764596,1752420650069,-460.0,0.00017534,2]
[371764597,1752420650078,-460.0,0.00017534,2]
[371764598,1752420650088,-464.86780733,0.00017534,2]
[371764599,1752420650097,-2137.64,0.00017534,2]
[371764600,1752420650107,-460.0,0.00017534,2]
[371764601,1752420650116,-460.0,0.00017534,2]
[371764602,1752420650126,-460.0,0.00017534,2]
[371764603,1752420650136,-460.0,0.00017534,2]
[371764604,1752420650145,-460.0,0.00017534,2]
[371764605,1752420650155,-469.97885179,0.00017534,2]
[371764606,1752420650164,-460.0,0.00017534,2]
[371764607,1752420650174,-460.0,0.00017534,2]
[371764608,1752420650183,-460.0,0.00017534,2]
[371764609,1752420650192,-1455.97,0.00017534,2]
[371764610,1752420650201,-1120.93,0.00017534,2]
[371764611,1752420650211,-460.0,0.00017534,2]
[371764612,1752420650221,-460.0,0.00017534,2]
[371764613,1752420650231,-460.0,0.00017534,2]
[371764614,1752420650241,-460.0,0.00017534,2]
[371764615,1752420650250,-460.0,0.00017534,2]
[371764616,1752420650260,-585.96,0.00017534,2]
[371764617,1752420650270,-460.0,0.00017534,2]
[371764618,1752420650281,-715.8,0.00017534,2]
[371764619,1752420650291,-460.0,0.00017534,2]
[371764620,1752420650300,-460.0,0.00017534,2]
[371764621,1752420650310,-460.0,0.00017534,2]
[371764622,1752420650322,-460.0,0.00017534,2]
[371764623,1752420650331,-460.0,0.00017534,2]
[371764624,1752420650340,-460.0,0.00017534,2]
[371764625,1752420650350,-460.0,0.00017534,2]
[371764626,1752420650359,-460.0,0.00017534,2]
[371764627,1752420650369,-460.0,0.00017534,2]
[371764628,1752420650379,-460.0,0.00017534,2]
[371764629,1752420650389,-331.20809396,0.00017534,2]
[371764630,1752420650399,-460.0,0.00017534,2]
[371764631,1752420650408,-556.08,0.00017534,2]
[371764632,1752420650418,-460.0,0.00017534,2]
[371764633,1752420650427,-460.0,0.00017534,2]
[371764634,1752420650437,-460.0,0.00017534,2]
[371764635,1752420650446,-460.0,0.00017534,2]
[371764636,1752420650455,-460.0,0.00017534,2]
[371764637,1752420650465,-460.0,0.00017534,2]
[371764638,1752420650474,-460.0,0.00017534,2]
[371764639,1752420650483,-460.0,0.00017534,2]
[371764640,1752420650493,-460.0,0.00017534,2]
[371764641,1752420650502,-460.0,0.00017534,2]
[371764642,1752420650511,-460.0,0.00017534,2]
[371764643,1752420650520,-460.0,0.00017534,2]
[371764644,1752420650530,-460.0,0.00017534,2]
[371764645,1752420650539,-460.0,0.00017534,2]
[371764646,1752420650548,-742.4,0.00017534,2]
[371764647,1752420650557,-460.0,0.00017534,2]
[371764648,1752420650569,-460.0,0.00017534,2]
[371764649,1752420650579,-460.0,0.00017534,2]
[371764650,1752420650588,-460.0,0.00017534,2]
[371764651,1752420650597,-460.0,0.00017534,2]
[371764652,1752420650607,-734.05,0.00017534,2]
[371764653,1752420650617,-460.0,0.00017534,2]
[371764654,1752420650626,-460.0,0.00017534,2]
[371764655,1752420650636,-460.0,0.00017534,2]
[371764656,1752420650645,-460.0,0.00017534,2]
[371764657,1752420650747,-460.0,0.00017534,2]
[371764658,1752420650757,-557.98687684,0.00017562,2]
[371764659,1752420650772,-518.84824417,0.00017599,2]
[371764660,1752420650795,-222.47309679,0.000176,2]
[371764661,1752420650806,-161.971474,0.00017625,2]
[371764662,1752420650816,-161.971474,0.00017754,2]
[371764663,1752420650826,-467.0189137,0.00017759,2]
[371764664,1752420650835,-1001.42,0.00017798,3]
[371764665,1752420650845,-500.72,0.00017798,3]
[371764666,1752420650855,-462.07759992,0.00017808,2]
[371764667,1752420650864,-460.0,0.00017808,2]
[371764668,1752420650874,-460.0,0.00017808,2]
[371764669,1752420650884,-515.5869689,0.00017808,2]
[371764670,1752420650893,-460.0,0.00017808,2]
[371764671,1752420650903,-460.0,0.00017808,2]
[371764672,1752420650913,-460.0,0.00017808,2]
[371764673,1752420650923,-460.0,0.00017808,2]
[371764674,1752420650932,-473.81383971,0.00017808,2]
[371764675,1752420650942,-460.0,0.00017808,2]
[371764676,1752420650952,-460.0,0.00017808,2]
[371764677,1752420650962,-460.0,0.00017808,2]
[371764678,1752420650972,-460.0,0.00017808,2]
[371764679,1752420650985,-460.0,0.00017808,2]
[371764680,1752420650996,-460.0,0.00017808,2]
[371764681,1752420651007,-460.0,0.00017808,2]
[371764682,1752420651017,-460.0,0.00017808,2]
[371764683,1752420651027,-460.0,0.00017808,2]
[371764684,1752420651036,-460.0,0.00017808,2]
[371764685,1752420651046,-460.0,0.00017808,2]
[371764686,1752420651056,-460.0,0.00017808,2]
[371764687,1752420651068,-460.0,0.00017808,2]
[371764688,1752420651077,-460.0,0.00017808,2]
[371764689,1752420651086,-460.0,0.00017808,2]
[371764690,1752420651095,-460.0,0.00017808,2]
[371764691,1752420651105,-460.0,0.00017808,2]
[371764692,1752420651114,-460.0,0.00017808,2]
[371764693,1752420651123,-469.4426236,0.00017808,2]
[371764694,1752420651133,-616.35,0.00017808,2]
[371764695,1752420651143,-433.97984751,0.00017808,2]
[371764696,1752420651153,-468.4414643,0.00017808,2]
[371764697,1752420651162,-460.0,0.00017808,2]
[371764698,1752420651172,-460.0,0.00017808,2]
[371764699,1752420651181,-460.0,0.00017808,2]
[371764700,1752420651191,-460.0,0.00017808,2]
[371764701,1752420651200,-832.31,0.00017808,2]
[371764702,1752420651210,-460.0,0.00017808,2]
[371764703,1752420651219,-460.0,0.00017808,2]
[371764704,1752420651229,-151.07472828,0.00017808,2]
[371764705,1752420651238,-460.0,0.00017808,2]
[371764706,1752420651247,-1473.48,0.00017808,2]
[371764707,1752420651257,-460.0,0.00017808,2]
[371764708,1752420651266,-460.0,0.00017808,2]
[371764709,1752420651276,-460.0,0.00017808,2]
[371764710,1752420651285,-460.0,0.00017808,2]
[371764711,1752420651296,-460.0,0.00017808,2]
[371764712,1752420651305,-2137.64,0.00017808,2]
[371764713,1752420651317,-460.0,0.00017808,2]
[371764714,1752420651327,-460.0,0.00017808,2]
[371764715,1752420651336,-460.0,0.00017808,2]
[371764716,1752420651346,-460.0,0.00017808,2]
[371764717,1752420651355,-460.0,0.00017808,2]
[371764718,1752420651364,-460.0,0.00017808,2]
[371764719,1752420651374,-460.0,0.00017808,2]
[371764720,1752420651383,-460.0,0.00017808,2]
[371764721,1752420651392,-1455.97,0.00017808,2]
[371764722,1752420651402,-1120.93,0.00017808,2]
[371764723,1752420651411,-587.99166495,0.00017808,2]
[371764724,1752420651421,-460.0,0.00017808,2]
[371764725,1752420651430,-585.96,0.00017808,2]
[371764726,1752420651439,-460.0,0.00017808,2]
[371764727,1752420651448,-460.0,0.00017808,2]
[371764728,1752420651458,-715.8,0.00017808,2]
[371764729,1752420651467,-460.0,0.00017808,2]
[371764730,1752420651477,-460.0,0.00017808,2]
[371764731,1752420651487,-460.0,0.00017808,2]
[371764732,1752420651496,-460.0,0.00017808,2]
[371764733,1752420651506,-460.0,0.00017808,2]
[371764734,1752420651516,-460.0,0.00017808,2]
[371764735,1752420651526,-460.0,0.00017808,2]
[371764736,1752420651535,-460.0,0.00017808,2]
[371764737,1752420651544,-460.0,0.00017808,2]
[371764738,1752420651554,-460.0,0.00017808,2]
[371764739,1752420651563,-460.0,0.00017808,2]
[371764740,1752420651574,-556.08,0.00017808,2]
[371764741,1752420651583,-174.98397861,0.00017808,2]
[371764743,1752420651593,-460.0,0.00017808,2]
[371764744,1752420651602,-253.44149308,0.00017808,2]
[371764745,1752420651612,-460.0,0.00017808,2]
[371764746,1752420651621,-460.0,0.00017808,2]
[371764747,1752420651630,-279.26653153,0.00017808,2]
[371764748,1752420651640,-460.0,0.00017808,2]
[371764749,1752420651649,-460.0,0.00017808,2]
[371764750,1752420651659,-460.0,0.00017808,2]
[371764751,1752420651668,-460.0,0.00017808,2]
[371764752,1752420651678,-460.0,0.00017808,2]
[371764753,1752420651687,-460.0,0.00017808,2]
[371764754,1752420651696,-460.0,0.00017808,2]
[371764755,1752420651706,-460.0,0.00017808,2]
[371764756,1752420651715,-742.4,0.00017808,2]
[371764757,1752420651725,-460.0,0.00017808,2]
[371764758,1752420651735,-460.0,0.00017808,2]
[371764760,1752420651745,-460.0,0.00017808,2]
[371764761,1752420651754,-460.0,0.00017808,2]
[371764762,1752420651763,-734.05,0.00017808,2]
[371764763,1752420651772,-460.0,0.00017808,2]
[371764764,1752420651782,-460.0,0.00017808,2]
[371764765,1752420651792,-460.0,0.00017808,2]
[371764766,1752420651802,-460.0,0.00017808,2]
[371764767,1752420651811,-460.0,0.00017808,2]
[371764768,1752420651823,-420.0,0.00017856,2]
[371764769,1752420651833,-1240.24514543,0.00017868,2]
[371764770,1752420651843,-1500.0,0.00017868,2]
[371764771,1752420651852,-1500.0,0.00017868,2]
[371764772,1752420651861,-501.71534255,0.00017868,2]
[371764773,1752420651871,-315.32243225,0.00017868,2]
[371764774,1752420651880,-1500.0,0.00017868,2]
[371764775,1752420651889,-1500.0,0.00017868,2]
[371764776,1752420651899,-161.971474,0.00017882,2]
[371764777,1752420651908,-260.0,0.00017982,2]
[371764778,1752420651917,-53597.11129043,0.00018,2]
[371764779,1752420651927,-499.999999,0.00018,2]
[371764780,1752420651936,-161.971474,0.00018011,2]
[371764781,1752420651944,-1500.0,0.00018068,2]
[371764782,1752420651954,-483.86580156,0.00018081,2]
[371764783,1752420651964,-500.0,0.00018081,2]
[371764784,1752420651976,-583.11634758,0.00018081,2]
[371764785,1752420651988,-500.0,0.00018081,2]
[371764786,1752420651998,-500.0,0.00018081,2]
[371764787,1752420652007,-500.0,0.00018081,2]
[371764788,1752420652017,-500.0,0.00018081,2]
[371764789,1752420652028,-500.0,0.00018081,2]
[371764790,1752420652037,-500.0,0.00018081,2]
[371764791,1752420652048,-460.0,0.00018082,2]
[371764792,1752420652057,-468.588744,0.00018082,2]
[371764793,1752420652068,-460.0,0.00018082,2]
[371764794,1752420652077,-460.0,0.00018082,2]
[371764795,1752420652087,-460.0,0.00018082,2]
[371764796,1752420652096,-460.0,0.00018082,2]
[371764797,1752420652106,-460.0,0.00018082,2]
[371764798,1752420652116,-234.3288064,0.00018082,2]
[371764799,1752420652126,-460.0,0.00018082,2]
[371764800,1752420652135,-460.0,0.00018082,2]
[371764801,1752420652145,-460.0,0.00018082,2]
[371764802,1752420652156,-460.0,0.00018082,2]
[371764803,1752420652166,-460.0,0.00018082,2]
[371764804,1752420652176,-460.0,0.00018082,2]
[371764805,1752420652186,-485.02430456,0.00018082,2]
[371764806,1752420652196,-460.0,0.00018082,2]
[371764807,1752420652206,-460.0,0.00018082,2]
[371764808,1752420652216,-460.0,0.00018082,2]
[371764809,1752420652225,-460.0,0.00018082,2]
[371764810,1752420652235,-460.0,0.00018082,2]
[371764811,1752420652243,-460.0,0.00018082,2]
[371764812,1752420652253,-460.0,0.00018082,2]
[371764813,1752420652262,-460.0,0.00018082,2]
[371764814,1752420652271,-460.0,0.00018082,2]
[371764815,1752420652281,-616.35,0.00018082,2]
[371764816,1752420652291,-460.0,0.00018082,2]
[371764817,1752420652300,-460.0,0.00018082,2]
[371764818,1752420652310,-460.0,0.00018082,2]
[371764819,1752420652321,-460.0,0.00018082,2]
[371764820,1752420652331,-832.31,0.00018082,2]
[371764821,1752420652340,-460.0,0.00018082,2]
[371764822,1752420652350,-460.0,0.00018082,2]
[371764823,1752420652359,-460.0,0.00018082,2]
[371764824,1752420652369,-1473.48,0.00018082,2]
[371764825,1752420652378,-460.0,0.00018082,2]
[371764826,1752420652388,-460.0,0.00018082,2]
[371764827,1752420652397,-451.22299151,0.00018082,2]
[371764828,1752420652406,-460.0,0.00018082,2]
[371764829,1752420652415,-460.0,0.00018082,2]
[371764830,1752420652425,-2137.64,0.00018082,2]
[371764831,1752420652434,-460.0,0.00018082,2]
[371764832,1752420652443,-460.0,0.00018082,2]
[371764833,1752420652453,-460.0,0.00018082,2]
[371764835,1752420652462,-460.0,0.00018082,2]
[371764836,1752420652472,-460.0,0.00018082,2]
[371764837,1752420652481,-460.0,0.00018082,2]
[371764839,1752420652490,-460.0,0.00018082,2]
[371764841,1752420652500,-460.0,0.00018082,2]
[371764842,1752420652509,-1455.97,0.00018082,2]
[371764843,1752420652518,-1120.93,0.00018082,2]
[371764844,1752420652528,-460.0,0.00018082,2]
[371764845,1752420652537,-585.96,0.00018082,2]
[371764846,1752420652546,-460.0,0.00018082,2]
[371764847,1752420652556,-460.0,0.00018082,2]
[371764848,1752420652565,-715.8,0.00018082,2]
[371764849,1752420652576,-460.0,0.00018082,2]
[371764850,1752420652586,-460.0,0.00018082,2]
[371764851,1752420652595,-460.0,0.00018082,2]
[371764852,1752420652604,-460.0,0.00018082,2]
[371764853,1752420652614,-460.0,0.00018082,2]
[371764854,1752420652623,-460.0,0.00018082,2]
[371764855,1752420652632,-460.0,0.00018082,2]
[371764856,1752420652641,-460.0,0.00018082,2]
[371764857,1752420652650,-460.0,0.00018082,2]
[371764858,1752420652661,-460.0,0.00018082,2]
[371764859,1752420652670,-465.92708433,0.00018082,2]
[371764860,1752420652680,-556.08,0.00018082,2]
[371764861,1752420652689,-460.0,0.00018082,2]
[371764862,1752420652699,-460.0,0.00018082,2]
[371764863,1752420652708,-460.0,0.00018082,2]
[371764864,1752420652717,-460.0,0.00018082,2]
[371764865,1752420652727,-460.0,0.00018082,2]
[371764866,1752420652819,-460.0,0.00018082,2]
[371764867,1752420652829,-460.0,0.00018082,2]
[371764868,1752420652839,-460.0,0.00018082,2]
[371764869,1752420652848,-460.0,0.00018082,2]
[371764870,1752420652858,-460.0,0.00018082,2]
[371764871,1752420652869,-460.0,0.00018082,2]
[371764872,1752420652879,-742.4,0.00018082,2]
[371764873,1752420652889,-460.0,0.00018082,2]
[371764874,1752420652899,-460.0,0.00018082,2]
[371764875,1752420652908,-537.39267293,0.00018082,2]
[371764876,1752420652918,-460.0,0.00018082,2]
[371764877,1752420652927,-734.05,0.00018082,2]
[371764878,1752420652936,-460.0,0.00018082,2]
[371764879,1752420652945,-460.0,0.00018082,2]
[371764880,1752420652955,-460.0,0.00018082,2]
[371764881,1752420652964,-460.0,0.00018082,2]
[371764882,1752420652975,-460.0,0.00018082,2]
[371764883,1752420652985,-161.971474,0.0001814,2]
[371764884,1752420652995,-160.0,0.00018193,2]
[371764885,1752420653004,-160.0,0.00018193,2]
[371764886,1752420653014,-160.0,0.00018193,2]
[371764887,1752420653024,-160.0,0.00018202,2]
[371764888,1752420653033,-160.0,0.00018202,2]
[371764889,1752420653042,-160.0,0.00018207,2]
[371764890,1752420653052,-160.0,0.00018207,2]
[371764891,1752420653061,-230.68503973,0.00018207,2]
[371764892,1752420653072,-838.53376533,0.00018207,2]
[371764893,1752420653081,-215.42595214,0.00018207,2]
[371764894,1752420653091,-160.0,0.00018207,2]
[371764895,1752420653100,-12598.31844336,0.00018207,2]
[371764896,1752420653110,-160.0,0.00018207,2]
[371764897,1752420653120,-160.0,0.00018207,2]
[371764898,1752420653129,-161.971474,0.00018268,2]
[371764899,1752420653139,-460.0,0.00018356,2]
[371764900,1752420653149,-460.0,0.00018356,2]
[371764901,1752420653158,-460.0,0.00018356,2]
[371764902,1752420653168,-460.0,0.00018356,2]
[371764903,1752420653177,-460.0,0.00018356,2]
[371764904,1752420653187,-460.0,0.00018356,2]
[371764905,1752420653197,-460.0,0.00018356,2]
[371764906,1752420653206,-460.0,0.00018356,2]
[371764907,1752420653216,-460.0,0.00018356,2]
[371764908,1752420653225,-460.0,0.00018356,2]
[371764909,1752420653235,-460.0,0.00018356,2]
[371764910,1752420653245,-417.03171146,0.00018356,2]
[371764911,1752420653254,-460.0,0.00018356,2]
[371764912,1752420653264,-607.51015713,0.00018356,2]
[371764913,1752420653274,-460.0,0.00018356,2]
[371764914,1752420653283,-460.0,0.00018356,2]
[371764915,1752420653293,-460.0,0.00018356,2]
[371764916,1752420653302,-460.0,0.00018356,2]
[371764917,1752420653311,-460.0,0.00018356,2]
[371764918,1752420653322,-460.0,0.00018356,2]
[371764919,1752420653332,-460.0,0.00018356,2]
[371764920,1752420653342,-616.35,0.00018356,2]
[371764921,1752420653351,-474.71919553,0.00018356,2]
[371764922,1752420653360,-460.0,0.00018356,2]
[371764923,1752420653370,-460.0,0.00018356,2]
[371764924,1752420653380,-472.91252482,0.00018356,2]
[371764925,1752420653389,-832.31,0.00018356,2]
[371764926,1752420653399,-460.0,0.00018356,2]
[371764927,1752420653409,-460.0,0.00018356,2]
[371764928,1752420653418,-470.15383802,0.00018356,2]
[371764929,1752420653427,-1473.48,0.00018356,2]
[371764930,1752420653436,-172.12,0.00018356,2]
[371764931,1752420653446,-460.0,0.00018356,2]
[371764932,1752420653455,-460.0,0.00018356,2]
[371764933,1752420653464,-460.0,0.00018356,2]
[371764934,1752420653473,-2137.64,0.00018356,2]
[371764935,1752420653482,-494.27,0.00018356,2]
[371764936,1752420653492,-460.0,0.00018356,2]
[371764937,1752420653502,-460.0,0.00018356,2]
[371764938,1752420653511,-460.0,0.00018356,2]
[371764939,1752420653520,-460.0,0.00018356,2]
[371764940,1752420653530,-460.0,0.00018356,2]
[371764941,1752420653539,-460.0,0.00018356,2]
[371764942,1752420653549,-1455.97,0.00018356,2]
[371764943,1752420653558,-1120.93,0.00018356,2]
[371764944,1752420653567,-460.0,0.00018356,2]
[371764945,1752420653578,-585.96,0.00018356,2]
[371764946,1752420653587,-460.0,0.00018356,2]
[371764947,1752420653597,-460.0,0.00018356,2]
[371764948,1752420653606,-715.8,0.00018356,2]
[371764949,1752420653615,-460.0,0.00018356,2]
[371764950,1752420653625,-460.0,0.00018356,2]
[371764951,1752420653635,-460.0,0.00018356,2]
[371764952,1752420653644,-460.0,0.00018356,2]
[371764953,1752420653653,-460.0,0.00018356,2]
[371764954,1752420653662,-460.0,0.00018356,2]
[371764955,1752420653672,-460.0,0.00018356,2]
[371764956,1752420653681,-460.0,0.00018356,2]
[371764957,1752420653690,-460.0,0.00018356,2]
[371764958,1752420653699,-460.0,0.00018356,2]
[371764959,1752420653709,-556.08,0.00018356,2]
[371764960,1752420653718,-460.0,0.00018356,2]
[371764961,1752420653727,-460.0,0.00018356,2]
[371764962,1752420653738,-460.0,0.00018356,2]
[371764963,1752420653747,-460.0,0.00018356,2]
[371764964,1752420653757,-460.0,0.00018356,2]
[371764965,1752420653766,-473.04859808,0.00018356,2]
[371764966,1752420653775,-460.0,0.00018356,2]
[371764967,1752420653785,-460.0,0.00018356,2]
[371764968,1752420653794,-460.0,0.00018356,2]
[371764969,1752420653804,-460.0,0.00018356,2]
[371764970,1752420653813,-460.0,0.00018356,2]
[371764971,1752420653824,-742.4,0.00018356,2]
[371764972,1752420653834,-460.0,0.00018356,2]
[371764973,1752420653844,-460.0,0.00018356,2]
[371764974,1752420653853,-460.0,0.00018356,2]
[371764975,1752420653863,-734.05,0.00018356,2]
[371764976,1752420653872,-450.17546541,0.00018356,2]
[371764977,1752420653882,-460.0,0.00018356,2]
[371764978,1752420653891,-460.0,0.00018356,2]
[371764979,1752420653900,-460.0,0.00018356,2]
[371764980,1752420653910,-151.0,0.00018368,2]
[371764981,1752420653919,-270.396989,0.00018368,2]
[371764982,1752420653929,-270.396989,0.00018368,2]
[371764983,1752420653938,-2019.151962,0.00018368,2]
[371764984,1752420653947,-2019.151962,0.00018368,2]
[371764985,1752420653956,-161.971474,0.00018397,2]
[371764986,1752420653966,-1510.08387321,0.00018416,2]
[371764987,1752420653978,-806.48796736,0.00018416,2]
[371764988,1752420653988,-2000.0,0.00018416,2]
[371764989,1752420653998,-2000.0,0.00018416,2]
[371764990,1752420654007,-207.4,0.00018474,2]
[371764991,1752420654017,-151.0,0.00018474,2]
[371764992,1752420654027,-6912.642,0.00018474,2]
[371764993,1752420654036,-151.0,0.00018474,2]
[371764994,1752420654046,-175.14516148,0.00018474,2]
[371764995,1752420654057,-161.971474,0.00018526,2]
[371764996,1752420654067,-7168.409754,0.00018529,2]
[371764997,1752420654078,-500.0,0.00018558,2]
[371764998,1752420654087,-500.0,0.00018558,2]
[371764999,1752420654097,-500.0,0.00018558,2]
[371765000,1752420654106,-500.0,0.00018558,2]
[371765001,1752420654115,-500.0,0.00018558,2]
[371765002,1752420654124,-500.0,0.00018558,2]
[371765003,1752420654134,-500.0,0.00018558,2]
[371765004,1752420654144,-500.0,0.00018558,2]
[371765005,1752420654153,-503.94399516,0.00018558,2]
[371765006,1752420654162,-500.52366226,0.00018558,2]
[371765007,1752420654171,-500.0,0.00018558,2]
[371765008,1752420654181,-7433.6409149,0.00018584,2]
[371765009,1752420654191,-2000.0,0.00018616,2]
[371765010,1752420654200,-460.0,0.0001863,2]
[371765011,1752420654209,-460.0,0.0001863,2]
[371765012,1752420654218,-463.04951162,0.0001863,2]
[371765013,1752420654228,-460.0,0.0001863,2]
[371765014,1752420654238,-460.0,0.0001863,2]
[371765015,1752420654247,-440.82494386,0.0001863,2]
[371765016,1752420654257,-460.0,0.0001863,2]
[371765017,1752420654267,-460.0,0.0001863,2]
[371765018,1752420654277,-593.79445313,0.0001863,2]
[371765019,1752420654286,-460.0,0.0001863,2]
[371765020,1752420654295,-460.0,0.0001863,2]
[371765021,1752420654305,-460.0,0.0001863,2]
[371765022,1752420654314,-460.0,0.0001863,2]
[371765023,1752420654325,-535.7148807,0.0001863,2]
[371765024,1752420654334,-460.0,0.0001863,2]
[371765025,1752420654343,-460.0,0.0001863,2]
[371765026,1752420654353,-460.0,0.0001863,2]
[371765027,1752420654362,-460.0,0.0001863,2]
[371765028,1752420654372,-616.35,0.0001863,2]
[371765029,1752420654381,-460.0,0.0001863,2]
[371765030,1752420654390,-470.81751704,0.0001863,2]
[371765031,1752420654401,-832.31,0.0001863,2]
[371765032,1752420654410,-460.0,0.0001863,2]
[371765033,1752420654419,-1473.48,0.0001863,2]
[371765034,1752420654428,-460.0,0.0001863,2]
[371765035,1752420654438,-460.0,0.0001863,2]
[371765036,1752420654448,-460.0,0.0001863,2]
[371765037,1752420654458,-2137.64,0.0001863,2]
[371765038,1752420654467,-460.0,0.0001863,2]
[371765039,1752420654476,-460.0,0.0001863,2]
[371765040,1752420654487,-460.0,0.0001863,2]
[371765041,1752420654496,-460.0,0.0001863,2]
[371765042,1752420654505,-475.72077311,0.0001863,2]
[371765043,1752420654515,-194.57729549,0.0001863,2]
[371765044,1752420654524,-1326.41114639,0.0001863,2]
[371765045,1752420654735,-129.55885361,0.0001863,2]
[371765046,1752420654744,-374.76132944,0.0001863,2]
[371765047,1752420655089,5000.0,0.00025,5]
[371765048,1752420655126,-460.0,0.00016438,2]
[371765049,1752420655136,-461.71695921,0.00016712,2]
[371765050,1752420655147,-619.95782701,0.0001863,2]
[371765051,1752420655212,-460.0,0.00016438,2]
[371765052,1752420655222,-80.60736584,0.0001863,2]
[371765053,1752420655412,158.34,0.000244,7]
[371765054,1752420658082,5000.0,0.00025,5]
[371765055,1752420666986,171.717375,0.00024108,7]
[371765056,1752420673859,5000.0,0.00025,5]
[371765057,1752420675899,151.0,0.000249,7]
[371765058,1752420678388,606.74474633,0.00021486,5]
[371765059,1752420678487,606.74474633,0.00021762,5]
[371765060,1752420678590,606.74474633,0.00022038,6]
[371765061,1752420678690,606.74474633,0.00022314,7]
[371765062,1752420678783,606.74474633,0.0002259,7]
[371765063,1752420678887,606.74474633,0.00022866,8]
[371765064,1752420679010,606.74474633,0.00023141,8]
[371765065,1752420679129,606.74474633,0.00023417,9]
[371765066,1752420679218,606.74474633,0.00023693,9]
[371765067,1752420679338,606.74474633,0.00023969,10]
[371765068,1752420679438,606.74474633,0.00024245,10]
[371765069,1752420679537,606.74474633,0.00024521,11]
[371765070,1752420679635,606.74474633,0.00024797,11]
[371765071,1752420689624,302.0,0.00027397,120]
[371765072,1752420690049,5000.0,0.00025,5]
[371765073,1752420702688,188.47716484,0.00024568,5]
[371765074,1752420704998,227.03745343,0.00024568,5]
[371765075,1752420706601,5000.0,0.00025,5]
[371765076,1752420721831,5000.0,0.00025,5]
[371765077,1752420736838,151.0,0.000235,8]
[371765078,1752420737142,151.0,0.000221,7]
[371765079,1752420737658,5000.0,0.00025,5]
[371765080,1752420749722,810.71,0.000242,7]